fUST/lending_fUST_20241008
["ID","MTS","AMOUNT","RATE_DAILY","PERIOD"]
[340016126,1728334233120,-500.0,0.00031091,5]
[340016127,1728334233132,-500.0,0.00031091,5]
[340016128,1728334233142,-308.24858825,0.00031091,5]
[340016129,1728334233152,-503.45321735,0.00031091,3]
[340016130,1728334233163,-500.0,0.000311,5]
[340016131,1728334233172,-501.16814187,0.00031108,5]
[340016132,1728334233183,-166.00335666,0.00031108,5]
[340016133,1728334233194,-500.0,0.00031108,5]
[340016134,1728334233204,-500.0,0.00031108,5]
[340016135,1728334233214,-299.74805331,0.00031108,5]
[340016136,1728334233224,-572.20237264,0.0003119,2]
[340016137,1728334233235,-1000.0,0.000312,2]
[340016138,1728334233244,-500.0,0.00031233,5]
[340016139,1728334233255,-778.083273,0.00031235,2]
[340016140,1728334233265,-420.0,0.00031245,2]
[340016141,1728334233274,-8220.34,0.0003127,10]
[340016142,1728334233284,-160.98627073,0.00031273,5]
[340016143,1728334233294,-500.0,0.00031273,5]
[340016144,1728334233305,-16104.9237818,0.0003128,4]
[340016145,1728334233315,-552.54953778,0.0003128,4]
[340016146,1728334233324,-48314.7713453,0.0003128,4]
[340016147,1728334233334,-1657.64861334,0.0003128,4]
[340016148,1728334233343,-177.39190768,0.00031289,2]
[340016149,1728334233353,-500.0,0.00031289,2]
[340016150,1728334233363,-500.0,0.00031289,2]
[340016151,1728334233372,-256.13494106,0.00031289,2]
[340016152,1728334233383,-650.58896273,0.00031289,2]
[340016153,1728334233393,-16104.9237818,0.0003129,4]
[340016154,1728334233404,-552.54953778,0.0003129,4]
[340016155,1728334233415,-128839.390254,0.0003129,4]
[340016156,1728334233425,-4420.39630224,0.0003129,4]
[340016157,1728334233436,-10927.93264831,0.00031292,4]
[340016180,1728334238606,-6850.28,0.0003128,10]
[340016182,1728334238616,-4914.22,0.00031292,4]
[340016186,1728334238650,-262.77113349,0.00031292,4]
[340016188,1728334238659,-552.54953778,0.00031292,4]
[340016190,1728334238670,-151.0,0.00031299,7]
[340016192,1728334238679,-6783.56745073,0.00031299,7]
[340016194,1728334238691,-35545.01275574,0.00031299,7]
[340016196,1728334238700,-25767.63379378,0.000313,7]
[340016197,1728334238710,-195380.05376515,0.000313,14]
[340016199,1728334238720,-363.11,0.000313,7]
[340016201,1728334238729,-3453.78,0.000313,14]
[340016203,1728334238740,-103903.74,0.000313,14]
[340016205,1728334238749,-47756.07,0.000313,14]
[340016207,1728334238759,-150.0,0.000313,3]
[340016209,1728334238771,-150.112233,0.000313,6]
[340016211,1728334238780,-151.0,0.000313,7]
[340016213,1728334238790,-151.0,0.000313,7]
[340016215,1728334238799,-151.0,0.000313,7]
[340016217,1728334238809,-276.05966,0.000313,7]
[340016219,1728334238819,-151.0,0.000313,7]
[340016220,1728334238828,-151.0,0.000313,7]
[340016222,1728334238838,-151.0,0.000313,7]
[340016224,1728334238849,-151.0,0.000313,7]
[340016226,1728334238859,-151.0,0.000313,7]
[340016228,1728334238868,-151.0,0.000313,7]
[340016230,1728334238878,-151.0,0.000313,7]
[340016232,1728334238887,-151.0,0.000313,7]
[340016234,1728334238897,-151.0,0.000313,7]
[340016235,1728334238906,-151.0,0.000313,7]
[340016237,1728334238918,-151.0,0.000313,7]
[340016239,1728334238928,-151.0,0.000313,7]
[340016241,1728334238938,-151.0,0.000313,7]
[340016243,1728334238948,-151.0,0.000313,7]
[340016245,1728334238957,-151.0,0.000313,7]
[340016247,1728334238967,-151.0,0.000313,7]
[340016249,1728334238977,-151.0,0.000313,7]
[340016251,1728334238988,-558.74159,0.000313,7]
[340016253,1728334238998,-266.272967,0.000313,7]
[340016255,1728334239007,-266.272967,0.000313,7]
[340016257,1728334239016,-266.272967,0.000313,7]
[340016258,1728334239026,-266.272967,0.000313,7]
[340016260,1728334239035,-151.0,0.000313,7]
[340016262,1728334239045,-151.0,0.000313,7]
[340016264,1728334239057,-151.0,0.000313,7]
[340016266,1728334239067,-208.466311,0.000313,7]
[340016268,1728334239077,-208.466311,0.000313,7]
[340016270,1728334239086,-208.466311,0.000313,7]
[340016272,1728334239097,-208.466311,0.000313,7]
[340016274,1728334239106,-624.43809,0.000313,7]
[340016276,1728334239115,-624.43809,0.000313,7]
[340016277,1728334239124,-500.0,0.000313,2]
[340016279,1728334239134,-624.43809,0.000313,7]
[340016281,1728334239144,-624.43809,0.000313,7]
[340016283,1728334239154,-151.0,0.000313,7]
[340016285,1728334239163,-151.0,0.000313,7]
[340016287,1728334239182,-151.0,0.000313,7]
[340016289,1728334239191,-265.938496,0.000313,7]
[340016291,1728334239201,-265.938496,0.000313,7]
[340016293,1728334239211,-151.0,0.000313,7]
[340016295,1728334239220,-151.0,0.000313,7]
[340016296,1728334239229,-265.938496,0.000313,7]
[340016298,1728334239238,-265.938496,0.000313,7]
[340016301,1728334239249,-151.0,0.000313,7]
[340016303,1728334239259,-151.0,0.000313,7]
[340016304,1728334239268,-151.0,0.000313,7]
[340016306,1728334239278,-151.0,0.000313,7]
[340016308,1728334239287,-151.0,0.000313,7]
[340016310,1728334239296,-151.0,0.000313,7]
[340016312,1728334239306,-151.0,0.000313,7]
[340016314,1728334239315,-151.0,0.000313,7]
[340016316,1728334239326,-407.346544,0.000313,7]
[340016318,1728334239335,-407.346544,0.000313,7]
[340016320,1728334239345,-407.346544,0.000313,7]
[340016322,1728334239355,-407.346544,0.000313,7]
[340016324,1728334239364,-151.0,0.000313,7]
[340016326,1728334239373,-363.823278,0.000313,7]
[340016327,1728334239383,-151.0,0.000313,7]
[340016329,1728334239393,-363.823278,0.000313,7]
[340016331,1728334239402,-151.0,0.000313,7]
[340016333,1728334239412,-151.0,0.000313,7]
[340016335,1728334239425,-363.823278,0.000313,7]
[340016337,1728334239434,-363.823278,0.000313,7]
[340016339,1728334239444,-151.0,0.000313,7]
[340016341,1728334239453,-158.067028,0.000313,7]
[340016343,1728334239463,-151.0,0.000313,7]
[340016345,1728334239473,-151.0,0.000313,7]
[340016347,1728334239483,-151.0,0.000313,7]
[340016349,1728334239492,-158.516578,0.000313,7]
[340016351,1728334239501,-158.516578,0.000313,7]
[340016353,1728334239511,-158.516578,0.000313,7]
[340016354,1728334239521,-158.516578,0.000313,7]
[340016356,1728334239530,-158.516578,0.000313,7]
[340016358,1728334239540,-158.516578,0.000313,7]
[340016360,1728334239550,-151.0,0.000313,7]
[340016362,1728334239559,-151.0,0.000313,7]
[340016364,1728334239569,-151.0,0.000313,7]
[340016366,1728334239578,-151.0,0.000313,7]
[340016368,1728334239587,-151.0,0.000313,7]
[340016370,1728334239597,-151.0,0.000313,7]
[340016371,1728334239606,-151.0,0.000313,7]
[340016373,1728334239615,-151.0,0.000313,7]
[340016375,1728334239625,-151.0,0.000313,7]
[340016377,1728334239635,-151.0,0.000313,7]
[340016379,1728334239644,-151.0,0.000313,7]
[340016381,1728334239654,-1069.19422,0.000313,7]
[340016383,1728334239664,-1069.19422,0.000313,7]
[340016385,1728334239674,-1069.19422,0.000313,7]
[340016387,1728334239684,-1069.19422,0.000313,7]
[340016389,1728334239694,-1069.19422,0.000313,7]
[340016391,1728334239703,-1069.19422,0.000313,7]
[340016393,1728334239713,-151.0,0.000313,7]
[340016394,1728334239722,-151.0,0.000313,7]
[340016396,1728334239732,-151.0,0.000313,7]
[340016398,1728334239741,-151.0,0.000313,7]
[340016400,1728334239750,-151.0,0.000313,7]
[340016402,1728334239760,-151.0,0.000313,7]
[340016404,1728334239770,-151.0,0.00031302,7]
[340016406,1728334239779,-151.0,0.00031302,7]
[340016408,1728334239788,-558.74159,0.00031302,7]
[340016410,1728334239798,-266.272967,0.00031302,7]
[340016412,1728334239808,-266.272967,0.00031302,7]
[340016414,1728334239817,-151.0,0.00031302,7]
[340016416,1728334239826,-208.466311,0.00031302,7]
[340016418,1728334239835,-208.466311,0.00031302,7]
[340016419,1728334239845,-624.43809,0.00031302,7]
[340016421,1728334239854,-624.43809,0.00031302,7]
[340016422,1728334239864,-151.0,0.00031302,7]
[340016423,1728334239873,-265.938496,0.00031302,7]
[340016424,1728334239882,-151.0,0.00031302,7]
[340016425,1728334239892,-265.938496,0.00031302,7]
[340016426,1728334239902,-151.0,0.00031302,7]
[340016427,1728334239911,-151.0,0.00031302,7]
[340016428,1728334239921,-151.0,0.00031302,7]
[340016429,1728334239931,-295.34558,0.00031302,7]
[340016430,1728334239940,-407.346544,0.00031302,7]
[340016431,1728334239949,-407.346544,0.00031302,7]
[340016432,1728334239959,-151.0,0.00031302,7]
[340016433,1728334239968,-363.823278,0.00031302,7]
[340016434,1728334239977,-151.0,0.00031302,7]
[340016435,1728334239987,-363.823278,0.00031302,7]
[340016436,1728334239997,-151.0,0.00031302,7]
[340016437,1728334240006,-500.0,0.00031313,5]
[340016439,1728334240015,-500.0,0.00031313,5]
[340016440,1728334240024,-500.0,0.00031313,5]
[340016442,1728334240034,-500.0,0.0003132,5]
[340016444,1728334240043,-500.0,0.0003136,2]
[340016446,1728334240054,-500.83169148,0.0003136,5]
[340016449,1728334240064,-500.0,0.0003136,5]
[340016451,1728334240074,-500.0,0.0003136,5]
[340016453,1728334240083,-500.0,0.0003136,5]
[340016455,1728334240094,-500.0,0.0003136,5]
[340016458,1728334240105,-500.0,0.0003136,5]
[340016460,1728334240115,-413.1195984,0.0003137,2]
[340016461,1728334240125,-413.1195984,0.0003137,2]
[340016463,1728334240134,-413.1195984,0.0003137,2]
[340016465,1728334240145,-153.323223,0.0003137,2]
[340016467,1728334240155,-150.112233,0.000314,6]
[340016470,1728334240166,-150.112233,0.000314,9]
[340016472,1728334240177,-150.112233,0.000314,7]
[340016474,1728334240188,-500.0,0.00031417,5]
[340016476,1728334240198,-370.01611997,0.00031417,5]
[340016478,1728334240210,-500.0,0.00031417,5]
[340016480,1728334240219,-500.0,0.00031417,5]
[340016482,1728334240230,-7692.07458484,0.00031446,2]
[340016484,1728334240241,-150.112233,0.000315,5]
[340016487,1728334240252,-150.112233,0.000315,5]
[340016489,1728334240265,-150.112233,0.000316,5]
[340016491,1728334240274,-150.112233,0.000316,5]
[340016493,1728334240283,-150.112233,0.000316,8]
[340016495,1728334240293,-152.0,0.00031644,2]
[340016497,1728334240303,-169.0,0.00031644,2]
[340016499,1728334240312,-306.0,0.00031644,2]
[340016501,1728334240322,-151.0,0.00031648,7]
[340016503,1728334240332,-151.0,0.00031648,7]
[340016505,1728334240342,-151.0,0.00031653,7]
[340016507,1728334240353,-151.0,0.00031653,7]
[340016510,1728334240364,-151.0,0.00031655,7]
[340016512,1728334240376,-151.0,0.00031655,7]
[340016514,1728334240387,-151.0,0.00031655,7]
[340016516,1728334240398,-151.0,0.0003167,7]
[340016518,1728334240408,-151.0,0.0003167,7]
[340016520,1728334240419,-300.0,0.000317,5]
[340016522,1728334240430,-150.112233,0.000317,5]
[340016525,1728334240442,-150.112233,0.000317,10]
[340016527,1728334240451,-552.54953778,0.00031725,4]
[340016529,1728334240461,-552.54953778,0.00031735,4]
[340016531,1728334240471,-151.0,0.00031745,7]
[340016533,1728334240482,-151.0,0.00031745,7]
[340016535,1728334240491,-970.0,0.00031745,30]
[340016537,1728334240502,-970.0,0.00031745,30]
[340016539,1728334240512,-970.0,0.00031745,30]
[340016541,1728334240522,-970.0,0.00031745,30]
[340016543,1728334240531,-485.299419,0.00031745,30]
[340016546,1728334240542,-151.0,0.00031745,7]
[340016548,1728334240551,-151.0,0.00031745,7]
[340016550,1728334240561,-153.084359,0.00031745,7]
[340016552,1728334240571,-151.0,0.00031745,7]
[340016566,1728334240694,-151.0,0.00031745,7]
[340016568,1728334240705,-151.0,0.00031745,7]
[340016570,1728334240715,-151.0,0.00031745,7]
[340016572,1728334240726,-199.186936,0.00031745,7]
[340016575,1728334240736,-151.0,0.00031745,7]
[340016577,1728334240748,-558.74159,0.00031745,7]
[340016579,1728334240759,-266.272967,0.00031745,7]
[340016582,1728334240770,-266.272967,0.00031745,7]
[340016585,1728334240779,-154.014177,0.00031745,7]
[340016587,1728334240791,-208.466311,0.00031745,7]
[340016590,1728334240802,-208.466311,0.00031745,7]
[340016592,1728334240813,-624.43809,0.00031745,7]
[340016594,1728334240823,-624.43809,0.00031745,7]
[340016596,1728334240833,-151.0,0.00031745,7]
[340016598,1728334240842,-265.938496,0.00031745,7]
[340016600,1728334240851,-151.0,0.00031745,7]
[340016602,1728334240860,-265.938496,0.00031745,7]
[340016604,1728334240870,-151.0,0.00031745,7]
[340016606,1728334240880,-151.0,0.00031745,7]
[340016608,1728334240889,-151.0,0.00031745,7]
[340016610,1728334240898,-407.346544,0.00031745,7]
[340016612,1728334240908,-407.346544,0.00031745,7]
[340016615,1728334240918,-363.823278,0.00031745,7]
[340016617,1728334240928,-151.0,0.00031745,7]
[340016619,1728334240937,-151.0,0.00031745,7]
[340016621,1728334240947,-363.823278,0.00031745,7]
[340016623,1728334240956,-151.0,0.00031745,7]
[340016625,1728334240966,-151.0,0.00031745,7]
[340016627,1728334240977,-158.516578,0.00031745,7]
[340016629,1728334240987,-158.516578,0.00031745,7]
[340016631,1728334240996,-158.516578,0.00031745,7]
[340016633,1728334241005,-158.516578,0.00031745,7]
[340016635,1728334241015,-151.0,0.00031745,7]
[340016637,1728334241024,-151.0,0.00031745,7]
[340016639,1728334241033,-151.0,0.00031745,7]
[340016641,1728334241043,-201.932494,0.00031745,7]
[340016643,1728334241053,-2210.19815112,0.00031745,4]
[340016645,1728334241063,-230762.46986635,0.00031755,2]
[340016647,1728334241072,-151.0,0.00031755,7]
[340016649,1728334241081,-151.0,0.00031755,7]
[340016651,1728334241091,-151.0,0.00031755,7]
[340016653,1728334241102,-151.0,0.00031755,7]
[340016655,1728334241112,-151.0,0.00031755,7]
[340016657,1728334241121,-151.0,0.00031755,7]
[340016659,1728334241130,-151.0,0.00031755,7]
[340016661,1728334241140,-151.0,0.00031755,7]
[340016663,1728334241149,-558.74159,0.00031755,7]
[340016665,1728334241159,-266.272967,0.00031755,7]
[340016667,1728334241169,-266.272967,0.00031755,7]
[340016670,1728334241180,-208.466311,0.00031755,7]
[340016672,1728334241190,-208.466311,0.00031755,7]
[340016674,1728334241204,-624.43809,0.00031755,7]
[340016676,1728334241215,-624.43809,0.00031755,7]
[340016679,1728334241226,-151.0,0.00031755,7]
[340016681,1728334241236,-265.938496,0.00031755,7]
[340016683,1728334241248,-151.0,0.00031755,7]
[340016685,1728334241258,-265.938496,0.00031755,7]
[340016687,1728334241269,-151.0,0.00031755,7]
[340016689,1728334241278,-151.0,0.00031755,7]
[340016691,1728334241288,-151.0,0.00031755,7]
[340016693,1728334241297,-407.346544,0.00031755,7]
[340016695,1728334241306,-407.346544,0.00031755,7]
[340016697,1728334241316,-363.823278,0.00031755,7]
[340016699,1728334241325,-151.0,0.00031755,7]
[340016701,1728334241334,-363.823278,0.00031755,7]
[340016703,1728334241344,-190.528505,0.00031755,7]
[340016705,1728334241353,-158.516578,0.00031755,7]
[340016707,1728334241362,-158.516578,0.00031755,7]
[340016709,1728334241372,-151.0,0.00031755,7]
[340016711,1728334241382,-151.0,0.00031755,7]
[340016713,1728334241392,-1069.19422,0.00031755,7]
[340016715,1728334241401,-1069.19422,0.00031755,7]
[340016717,1728334241410,-151.0,0.00031755,7]
[340016719,1728334241420,-151.0,0.00031755,7]
[340016721,1728334241430,-150.112233,0.000318,7]
[340016723,1728334241439,-150.112233,0.000318,10]
[340016725,1728334241448,-150.112233,0.000318,10]
[340016727,1728334241457,-500.0,0.00031848,2]
[340016729,1728334241467,-150.112233,0.000319,6]
[340016731,1728334241478,-151.0,0.00032,30]
[340016733,1728334241487,-1000.0,0.00032,7]
[340016735,1728334241497,-150.112233,0.00032,7]
[340016737,1728334241507,-253.647177,0.00032,30]
[340016739,1728334241519,-150.112233,0.000321,8]
[340016741,1728334241529,-150.112233,0.000322,6]
[340016743,1728334241538,-150.112233,0.000323,8]
[340016745,1728334241549,-500.0,0.0003236,5]
[340016747,1728334241559,-151.0,0.0003239,7]
[340016749,1728334241568,-500.0,0.00032396,2]
[340016751,1728334241579,-3453.78,0.000324,14]
[340016753,1728334241588,-103903.74,0.000324,14]
[340016755,1728334241598,-151.0,0.000324,7]
[340016757,1728334241607,-151.0,0.000324,7]
[340016760,1728334241619,-151.0,0.000324,7]
[340016762,1728334241629,-151.0,0.000324,7]
[340016764,1728334241641,-199.193738,0.000324,7]
[340016766,1728334241652,-209.118352,0.000324,7]
[340016768,1728334241662,-558.74159,0.000324,7]
[340016770,1728334241674,-266.272967,0.000324,7]
[340016772,1728334241684,-266.272967,0.000324,7]
[340016774,1728334241693,-208.466311,0.000324,7]
[340016776,1728334241702,-208.466311,0.000324,7]
[340016778,1728334241711,-624.43809,0.000324,7]
[340016780,1728334241721,-624.43809,0.000324,7]
[340016782,1728334241731,-151.0,0.000324,7]
[340016784,1728334241740,-265.938496,0.000324,7]
[340016786,1728334241749,-151.0,0.000324,7]
[340016788,1728334241759,-265.938496,0.000324,7]
[340016790,1728334241769,-151.0,0.000324,7]
[340016792,1728334241778,-151.0,0.000324,7]
[340016794,1728334241788,-151.0,0.000324,7]
[340016796,1728334241797,-407.346544,0.000324,7]
[340016798,1728334241809,-407.346544,0.000324,7]
[340016800,1728334241820,-363.823278,0.000324,7]
[340016803,1728334241831,-151.0,0.000324,7]
[340016805,1728334241842,-363.823278,0.000324,7]
[340016807,1728334241853,-158.516578,0.000324,7]
[340016809,1728334241864,-158.516578,0.000324,7]
[340016811,1728334241874,-151.0,0.000324,7]
[340016813,1728334241884,-151.0,0.000324,7]
[340016815,1728334241894,-1069.19422,0.000324,7]
[340016817,1728334241903,-1069.19422,0.000324,7]
[340016819,1728334241912,-151.0,0.000324,7]
[340016821,1728334241923,-151.0,0.000324,7]
[340016823,1728334241932,-500.0,0.00032461,5]
[340016825,1728334241941,-413.1195984,0.00032466,2]
[340016827,1728334241951,-413.1195984,0.00032466,2]
[340016829,1728334241960,-413.1195984,0.00032466,2]
[340016831,1728334241970,-413.1195984,0.00032466,2]
[340016833,1728334241979,-413.1195984,0.00032466,2]
[340016835,1728334241989,-410.7527209,0.00032466,2]
[340016837,1728334242001,-500.0,0.0003247,5]
[340016839,1728334242011,-500.0,0.00032478,5]
[340016842,1728334242022,-1000.0,0.00032478,5]
[340016844,1728334242032,-320.0,0.000325,2]
[340016846,1728334242044,-363.11,0.000325,7]
[340016848,1728334242054,-47756.07,0.000325,14]
[340016850,1728334242064,-169.687658,0.000325,7]
[340016852,1728334242074,-151.0,0.000325,7]
[340016854,1728334242085,-151.0,0.000325,7]
[340016856,1728334242098,-219.519473,0.000325,7]
[340016858,1728334242109,-558.74159,0.000325,7]
[340016860,1728334242121,-266.272967,0.000325,7]
[340016862,1728334242131,-266.272967,0.000325,7]
[340016865,1728334242142,-208.466311,0.000325,7]
[340016867,1728334242152,-208.466311,0.000325,7]
[340016869,1728334242162,-624.43809,0.000325,7]
[340016871,1728334242174,-624.43809,0.000325,7]
[340016873,1728334242185,-151.0,0.000325,7]
[340016875,1728334242195,-265.938496,0.000325,7]
[340016877,1728334242204,-254.703904,0.000325,7]
[340016879,1728334242213,-265.938496,0.000325,7]
[340016881,1728334242223,-151.0,0.000325,7]
[340016883,1728334242232,-151.0,0.000325,7]
[340016885,1728334242241,-151.0,0.000325,7]
[340016887,1728334242251,-407.346544,0.000325,7]
[340016889,1728334242260,-407.346544,0.000325,7]
[340016891,1728334242270,-363.823278,0.000325,7]
[340016892,1728334242279,-151.0,0.000325,7]
[340016895,1728334242289,-363.823278,0.000325,7]
[340016897,1728334242300,-158.516578,0.000325,7]
[340016899,1728334242311,-158.516578,0.000325,7]
[340016901,1728334242322,-151.0,0.000325,7]
[340016903,1728334242334,-151.0,0.000325,7]
[340016905,1728334242345,-1069.19422,0.000325,7]
[340016907,1728334242355,-1069.19422,0.000325,7]
[340016910,1728334242368,-151.0,0.000325,7]
[340016912,1728334242379,-252.886418,0.000325,7]
[340016914,1728334242389,-209.6916673,0.00032603,2]
[340016916,1728334242399,-153.0,0.00032603,2]
[340016918,1728334242408,-209.6916673,0.00032603,2]
[340016920,1728334242417,-209.6916673,0.00032603,2]
[340016922,1728334242426,-209.6916673,0.00032603,2]
[340016924,1728334242436,-209.6916673,0.00032603,2]
[340016926,1728334242445,-511.1626794,0.00032603,2]
[340016928,1728334242454,-500.0,0.00032603,5]
[340016930,1728334242464,-500.94167589,0.00032642,5]
[340016932,1728334242473,-1787.50649792,0.00032657,7]
[340016934,1728334242483,-1000.0,0.00032682,5]
[340016936,1728334242492,-300.0,0.000327,7]
[340016938,1728334242502,-1000.0,0.0003273,2]
[340016940,1728334242514,-1000.0,0.0003273,5]
[340016942,1728334242524,-500.15464717,0.0003273,5]
[340016944,1728334242537,-1000.0,0.0003273,5]
[340016946,1728334242551,-1000.0,0.0003273,5]
[340016948,1728334242562,-501.00360095,0.0003273,5]
[340016951,1728334242574,-3000.0,0.00032736,3]
[340016953,1728334242584,-1000.75572464,0.00032787,5]
[340016955,1728334242593,-500.93197883,0.00032787,5]
[340016957,1728334242603,-1000.0,0.00032876,2]
[340016958,1728334242612,-1000.0,0.00032876,2]
[340016960,1728334242621,-1000.0,0.00032876,2]
[340016962,1728334242630,-1000.0,0.00032876,2]
[340016964,1728334242640,-1000.0,0.00032876,2]
[340016966,1728334242649,-641.86376602,0.00032876,2]
[340016968,1728334242659,-1322.575987,0.00032877,120]
[340016970,1728334242668,-400.0,0.00032877,60]
[340016983,1728334242679,-500.0,0.00032944,2]
[340016985,1728334242789,-7692.07458484,0.00032992,2]
[340016987,1728334242800,-1000.0,0.00033,120]
[340016989,1728334242810,-828.06333155,0.00033,30]
[340016991,1728334242820,-1000.0,0.00033,2]
[340016994,1728334242831,-229.0,0.00033,2]
[340016996,1728334242842,-229.0,0.00033,2]
[340016998,1728334242852,-437.0,0.00033104,2]
[340017000,1728334242862,-15882.24401019,0.00033172,2]
[340017002,1728334242871,-500.0,0.00033173,5]
[340017004,1728334242881,-167.62134872,0.00033173,5]
[340017006,1728334242890,-168.96,0.00033173,5]
[340017008,1728334242899,-177.50459052,0.00033173,5]
[340017010,1728334242908,-301349.94,0.000332,14]
[340017012,1728334242919,-151.0,0.000332,14]
[340017015,1728334242929,-151.0,0.000332,14]
[340017017,1728334242939,-558.74159,0.000332,14]
[340017019,1728334242948,-266.272967,0.000332,14]
[340017020,1728334242957,-266.272967,0.000332,14]
[340017021,1728334242967,-208.466311,0.000332,14]
[340017022,1728334242977,-208.466311,0.000332,14]
[340017024,1728334242986,-624.43809,0.000332,14]
[340017025,1728334242996,-624.43809,0.000332,14]
[340017026,1728334243006,-151.0,0.000332,14]
[340017027,1728334243015,-265.938496,0.000332,14]
[340017028,1728334243025,-265.938496,0.000332,14]
[340017029,1728334243035,-151.0,0.000332,14]
[340017031,1728334243044,-169.571304,0.000332,14]
[340017032,1728334243054,-407.346544,0.000332,14]
[340017033,1728334243063,-407.346544,0.000332,14]
[340017035,1728334243072,-363.823278,0.000332,14]
[340017037,1728334243082,-363.823278,0.000332,14]
[340017039,1728334243092,-158.516578,0.000332,14]
[340017041,1728334243103,-158.516578,0.000332,14]
[340017043,1728334243113,-151.0,0.000332,14]
[340017044,1728334243123,-151.0,0.000332,14]
[340017046,1728334243132,-1069.19422,0.000332,14]
[340017048,1728334243142,-1069.19422,0.000332,14]
[340017050,1728334243151,-151.0,0.000332,14]
[340017052,1728334243160,-154.0,0.00033226,2]
[340017054,1728334243172,-500.0,0.00033492,2]
[340017056,1728334243183,-500.0,0.00033573,5]
[340017058,1728334243192,-3453.78,0.000336,14]
[340017060,1728334243201,-103903.74,0.000336,14]
[340017062,1728334243211,-151.0,0.000336,14]
[340017064,1728334243220,-151.0,0.000336,14]
[340017066,1728334243230,-558.74159,0.000336,14]
[340017068,1728334243239,-266.272967,0.000336,14]
[340017070,1728334243249,-266.272967,0.000336,14]
[340017072,1728334243258,-208.466311,0.000336,14]
[340017074,1728334243267,-208.466311,0.000336,14]
[340017076,1728334243277,-624.43809,0.000336,14]
[340017078,1728334243286,-624.43809,0.000336,14]
[340017080,1728334243295,-151.0,0.000336,14]
[340017082,1728334243304,-265.938496,0.000336,14]
[340017084,1728334243314,-265.938496,0.000336,14]
[340017086,1728334243323,-151.0,0.000336,14]
[340017088,1728334243332,-407.346544,0.000336,14]
[340017090,1728334243342,-407.346544,0.000336,14]
[340017092,1728334243351,-363.823278,0.000336,14]
[340017093,1728334243361,-363.823278,0.000336,14]
[340017095,1728334243370,-158.516578,0.000336,14]
[340017097,1728334243380,-158.516576,0.000336,14]
[340017099,1728334243389,-151.0,0.000336,14]
[340017101,1728334243399,-156.132548,0.000336,14]
[340017103,1728334243408,-1069.19422,0.000336,14]
[340017105,1728334243417,-1069.19422,0.000336,14]
[340017107,1728334243427,-196.201148,0.000336,14]
[340017109,1728334243437,-300.0,0.000337,8]
[340017111,1728334243446,-363.11,0.000337,30]
[340017113,1728334243456,-500.0,0.0003373,5]
[340017115,1728334243466,-151.0,0.0003383,14]
[340017117,1728334243475,-151.0,0.0003383,14]
[340017119,1728334243485,-151.0,0.0003383,14]